{"text_format":"1","workbook":"xlsx","n_sheets":3,"sheets":["Лист1","Лист2","Лист3"],"not_rendered":{"charts":0,"images":0,"macros":1,"external_links":0,"defined_names":0,"comments":0,"pivot_tables":0},"unopened":[],"bounds":{"document_bytes":16777216,"sheet_cells":100000,"rows_first":2000,"rows_last":500,"rows_between":2000,"halvings":0,"cell_chars":16384,"cell_head_chars":4096},"cells_cut":0,"cells_raw":0,"read":"whole","date_system":"1900"}

{"sheet":"Лист1","index":0,"n_rows":29,"n_cols":2,"rows_kept":29,"cut":false,"hidden":false,"merged":[]}
["купить satya благовония в Москве",{"$f":"Propl(A1)","v":"купить Satya благовония в Москве"}]
["satya благовония для дома",{"$f":"Propl(A2)","v":"Satya благовония для дома"}]
["курительница sang для благовоний","курительница Sang для благовоний"]
["палочки stang благовония","палочки Stang благовония"]
["ароматические botanika палочки благовония","ароматические Botanika палочки благовония"]
["купить благовония палочки","купить благовония палочки"]
["купить благовония палочки в интернет-магазине","купить благовония палочки в интернет-магазине"]
["купить благовония палочки в Москве","купить благовония палочки в Москве"]
["купить ароматические палочки благовония","купить ароматические палочки благовония"]
["купить ароматические палочки благовония в Москве","купить ароматические палочки благовония в Москве"]
["угольные благовония","угольные благовония"]
["индийские благовония","индийские благовония"]
["купить индийские благовония","купить индийские благовония"]
["купить индийские благовония в Москве","купить индийские благовония в Москве"]
["купить индийские благовония в интернет-магазине","купить индийские благовония в интернет-магазине"]
["лучшие индийские благовония","лучшие индийские благовония"]
["магазин индийских благовоний","магазин индийских благовоний"]
["индийские благовония интернет-магазин","индийские благовония интернет-магазин"]
["купить индийские благовония палочки","купить индийские благовония палочки"]
["индийские благовония палочки","индийские благовония палочки"]
["благовония масала","благовония масала"]
["аромапалочки satya","аромапалочки Satya"]
["натуральные благовония","натуральные благовония"]
["купить натуральные благовония","купить натуральные благовония"]
["купить санг благовония","купить санг благовония"]
["sang благовония","Sang благовония"]
["тибетские благовония","тибетские благовония"]
["купить тибетские благовония","купить тибетские благовония"]
["купить тибетские благовония в Москве","купить тибетские благовония в Москве"]

{"sheet":"Лист2","index":1,"n_rows":0,"n_cols":0,"rows_kept":0,"cut":false,"hidden":false,"merged":[]}

{"sheet":"Лист3","index":2,"n_rows":0,"n_cols":0,"rows_kept":0,"cut":false,"hidden":false,"merged":[]}